bitfinex/quotes_SOLUSD_20250321
["timestamp","ask_amount","ask_price","bid_price","bid_amount"]
[1742535593098,41.2920629,128.01,128.0,0.063]
[1742535593298,41.57638604,128.01,128.0,0.063]
[1742535595404,41.2920629,128.01,128.0,0.063]
[1742535600504,41.00773976,128.01,128.0,0.063]
[1742535600712,33.19593976,128.01,128.0,0.063]
[1742535602112,41.00773976,128.01,128.0,0.063]
[1742535603803,41.2920629,128.01,128.0,0.063]
[1742535613024,33.19593976,128.01,128.0,0.063]
[1742535615929,41.00773976,128.01,128.0,0.063]
[1742535616938,41.2920629,128.01,128.0,0.063]
[1742535624011,41.57638604,128.01,128.0,0.063]
[1742535625233,177.67638604,128.01,128.0,0.063]
[1742535635437,41.57638604,128.01,128.0,0.063]
[1742535635639,0.28432314,127.99,127.98,0.063]
[1742535635827,169.5802629,127.99,127.98,0.063]
[1742535637446,177.3933629,127.99,127.98,0.063]
[1742535639754,169.5802629,127.99,127.98,0.063]
[1742535641750,154.74964886,127.99,127.98,0.063]
[1742535641948,136.1,127.99,127.98,0.063]
[1742535643430,18.64964886,128.01,127.98,0.063]
[1742535643635,0.03,128.02,127.99,1.5766]
[1742535643943,20.0,128.01,128.0,7.8125]
[1742535645365,0.03,128.02,128.0,7.8125]
[1742535648944,0.03,128.02,128.01,14.4518]
[1742535654555,0.03,128.02,128.01,28.9980909]
[1742535655851,0.03,128.02,128.01,14.4518]
[1742535656185,14.5762909,128.02,128.01,6.64]
[1742535657072,0.03,128.02,128.01,6.64]
[1742535657448,0.03,128.02,128.01,14.4518]
[1742535657847,0.03,128.02,128.01,6.64]
[1742535670899,0.03,128.02,128.01,14.4518]
[1742535681811,0.03,128.02,128.01,28.9980909]
[1742535693311,0.03,128.02,128.01,29.28241404]
[1742535693834,0.03,128.02,128.01,29.26241404]
[1742535703351,0.03,128.02,128.01,29.54673718]
[1742535704135,0.03,128.05,128.03,20.0]
[1742535704339,0.03,128.05,128.04,14.5462909]
[1742535705435,0.03,128.05,128.04,22.3562909]
[1742535708266,0.03,128.05,128.04,22.64061404]
[1742535710055,0.03,128.05,128.04,22.92493718]
[1742535712934,0.03,128.05,128.04,22.3562909]
[1742535718056,0.03,128.05,128.04,22.64061404]
[1742535718949,0.0001,128.05,128.04,22.92493718]
[1742535719148,0.0001,128.05,128.04,122.77458604]
[1742535720765,0.0001,128.05,128.04,104.12493718]
[1742535727272,0.0001,128.05,128.04,122.77458604]
[1742535727569,0.0001,128.05,128.04,123.27458604]
[1742535728066,0.03,128.12,128.08,20.0]
[1742535728257,0.03,128.12,128.1,14.5462909]
[1742535729380,0.03,128.12,128.11,7.8057]
[1742535732773,0.03,128.12,128.11,22.3519909]
[1742535734071,0.03,128.12,128.11,7.8057]
[1742535737468,0.03,128.12,128.09,28.9726909]
[1742535737659,0.03,128.12,128.09,14.4264]
[1742535737859,14.5762909,128.12,128.09,14.4264]
[1742535738072,0.03,128.12,128.09,14.4264]
[1742535740182,0.03,128.12,128.09,28.9726909]
[1742535741588,0.03,128.12,128.1,14.5462909]
[1742535742585,0.03,128.12,128.11,7.8057]
[1742535744785,0.03,128.12,128.11,22.3519909]
[1742535747090,0.03,128.12,128.1,22.3526909]
[1742535748175,0.03,128.12,128.11,14.5462909]
[1742535749199,0.03,128.12,128.1,22.3526909]
[1742535749496,0.03,128.12,128.11,14.5462909]
[1742535750992,0.03,128.12,128.11,22.3519909]
[1742535751402,0.03,128.12,128.11,7.8057]
[1742535759394,0.03,128.12,128.11,22.3519909]
[1742535760598,0.03,128.12,128.11,22.63631404]
[1742535761482,0.03,128.12,128.11,22.3519909]
[1742535761692,0.03,128.12,128.11,7.8057]
[1742535762401,0.03,128.12,128.11,22.3519909]
[1742535763573,0.03,128.12,128.11,22.63631404]
[1742535775112,0.03,128.12,128.11,22.92063718]
[1742535775413,0.03,128.12,128.11,41.57028604]
[1742535777709,0.03,128.12,128.11,122.77028604]
[1742535780619,0.03,128.12,128.11,104.12063718]
[1742535780800,0.03,128.12,128.11,89.0057]
[1742535781004,0.03,128.12,128.11,95.6257]
[1742535781746,0.03,128.12,128.11,110.1719909]
[1742535782104,0.03,128.12,128.11,95.6257]
[1742535783626,0.03,128.12,128.11,14.4257]
[1742535783824,0.03,128.12,128.11,6.62]
[1742535784204,0.03,128.12,128.11,14.4257]
[1742535788634,0.03,128.12,128.08,34.5462909]
[1742535788933,0.03,128.12,128.09,7.8068]
[1742535789134,0.03,128.12,128.1,6.62]
[1742535789837,14.5762909,128.12,128.1,6.62]
[1742535790029,14.5762909,128.12,128.09,14.4268]
[1742535791634,14.5462909,128.11,128.06,14.5462909]
[1742535791931,14.5462909,128.1,128.07,6.62]
[1742535792237,14.5462909,128.1,128.08,6.62]
[1742535792416,14.5462909,128.09,128.06,7.8085]
[1742535792616,14.5462909,128.08,128.06,6.62]
[1742535792925,14.5462909,128.09,128.06,6.62]
[1742535795418,14.5462909,128.09,128.05,7.8722]
[1742535795716,14.5462909,128.09,128.05,14.4922]
[1742535796636,14.5462909,128.08,128.05,6.683]
[1742535796832,14.5462909,128.06,128.05,0.063]
[1742535797940,22.7642909,128.07,128.05,0.063]
[1742535798127,14.5462909,128.06,128.05,0.063]
[1742535800439,22.3550909,128.06,128.05,0.063]
[1742535801847,14.5462909,128.06,128.05,0.063]
[1742535805045,137.7533,128.09,128.05,0.063]
[1742535805346,20.0,128.07,128.05,0.063]
[1742535805531,14.5462909,128.06,128.05,0.063]
[1742535807023,22.3550909,128.06,128.05,0.063]
[1742535807221,1.6533,128.09,128.05,0.063]
[1742535807437,14.5462909,128.09,128.05,14.6092909]
[1742535807755,14.5462909,128.1,128.06,6.62]
[1742535808057,33.19593976,128.11,128.06,21.1662909]
[1742535808237,33.19593976,128.11,128.07,7.8082]
[1742535808544,14.5462909,128.1,128.07,7.8082]
[1742535808743,18.64964886,128.11,128.07,7.8082]
[1742535808744,14.5462909,128.09,128.07,7.8082]
[1742535811135,14.5462909,128.1,128.07,7.8082]
[1742535814448,14.5762909,128.1,128.07,7.8082]
[1742535818347,0.03,128.1,128.07,7.8082]
[1742535818551,14.5762909,128.1,128.07,7.8082]
[1742535823753,14.5462909,128.09,128.05,7.8724]
[1742535823957,14.5462909,128.06,128.05,0.063]
[1742535825952,22.3550909,128.06,128.05,0.063]
[1742535826356,41.00473976,128.06,128.05,0.063]
[1742535831862,33.19593976,128.06,128.05,0.063]
[1742535838550,136.1,128.08,128.05,0.063]
[1742535838961,136.1,128.08,128.05,14.6092909]
[1742535839162,0.03,128.06,128.05,21.2292909]
[1742535839758,0.03,128.06,128.05,14.4924]
[1742535842973,0.03,128.06,128.05,6.683]
[1742535843162,14.5762909,128.06,128.05,0.063]
[1742535844855,22.3850909,128.06,128.05,0.063]
[1742535845056,41.03473976,128.06,128.05,0.063]
[1742535847982,0.03,128.06,128.05,0.063]
[1742535848159,20.03,128.06,128.05,0.063]
[1742535854166,0.03,128.06,128.05,0.063]
[1742535855484,0.03,128.06,128.05,7.8724]
[1742535865266,0.03,128.06,128.05,0.063]
[1742535874997,0.03,128.06,128.05,7.8724]
[1742535876101,0.03,128.06,128.05,0.063]
[1742535892907,0.03,128.06,128.05,14.6092909]
[1742535893811,0.03,128.06,128.05,22.4186909]
[1742535895613,0.03,128.06,128.05,7.8724]
[1742535896722,0.03,128.06,128.05,0.063]
[1742535899804,14.5762909,128.06,128.05,0.063]
[1742535901113,41.3190629,128.06,128.05,0.063]
[1742535902115,33.5102629,128.06,128.05,0.063]
[1742535902314,0.03,128.06,128.05,0.063]
[1742535904011,14.5762909,128.06,128.05,0.063]
[1742535906928,0.03,128.06,128.05,0.063]
[1742535907901,14.5762909,128.06,128.05,0.063]
[1742535908821,0.03,128.06,128.05,0.063]
[1742535912026,0.03,128.06,128.05,14.6092909]
[1742535912808,0.03,128.06,128.05,22.4186909]
[1742535917638,0.03,128.06,128.05,7.8724]
[1742535917815,0.03,128.06,128.05,22.4186909]
[1742535934370,0.03,128.06,128.05,7.8724]
[1742535934658,0.03,128.06,128.05,22.4186909]
[1742535935437,0.03,128.06,128.05,0.063]
[1742535946575,0.03,128.06,128.05,14.6092909]
[1742535949170,0.03,128.06,128.05,22.4186909]
[1742535952275,0.03,128.1,128.06,20.28432314]
[1742535952455,0.03,128.1,128.09,14.5462909]
[1742535952661,0.03,128.1,128.09,21.1662909]
[1742535953763,0.03,128.1,128.09,21.45061404]
[1742535954468,0.03,128.1,128.09,29.25761404]
[1742535954672,0.03,128.12,128.1,20.28432314]
[1742535954855,0.03,128.12,128.11,14.5462909]
[1742535956385,0.03,128.12,128.11,22.3519909]
[1742535970094,0.03,128.12,128.11,14.5462909]
[1742535977911,0.03,128.12,128.11,14.83061404]
[1742535978405,0.03,128.12,128.11,15.11493718]
[1742535979108,0.03,128.12,128.11,22.92063718]
[1742535979415,0.03,128.14,128.13,34.83061404]
[1742535979591,0.03,128.14,128.13,41.43061404]
[1742535981192,0.03,128.14,128.13,49.23511404]
[1742535982108,0.03,128.14,128.13,6.6]
[1742535989690,14.5762909,128.14,128.1,7.8691]
[1742535989912,14.5762909,128.14,128.11,6.6]
[1742535990614,14.5462909,128.13,128.1,0.063]
[1742535990992,22.3513909,128.12,128.1,0.063]
[1742535991213,14.5462909,128.11,128.1,0.063]
[1742535991614,23.8978909,128.12,128.1,0.063]
[1742535991834,16.0927909,128.12,128.1,0.063]
[1742535993614,33.19593976,128.11,128.1,0.063]
[1742535994629,1.5465,128.12,128.1,0.063]
[1742535998119,33.19593976,128.11,128.1,0.063]
[1742535998826,39.46333976,128.11,128.1,0.063]
[1742536003615,18.64964886,128.11,128.1,0.063]
[1742536004915,33.19593976,128.11,128.1,0.063]
[1742536006516,18.64964886,128.11,128.1,0.063]
[1742536009527,26.45534886,128.11,128.1,0.063]
[1742536009715,18.64964886,128.11,128.1,0.063]
[1742536009917,41.00163976,128.11,128.1,0.063]
[1742536011113,41.2859629,128.11,128.1,0.063]
[1742536020928,33.4802629,128.11,128.1,0.063]
[1742536022440,18.64964886,128.11,128.1,0.063]
[1742536023759,0.03,128.12,128.1,0.063]
[1742536024048,0.03,128.12,128.1,14.6092909]
[1742536024254,0.03,128.12,128.1,0.063]
[1742536025743,0.03,128.12,128.1,7.8694]
[1742536025936,0.03,128.12,128.1,0.063]
[1742536025937,33.19593976,128.11,128.1,0.063]
[1742536026142,33.4802629,128.11,128.1,0.063]
[1742536026348,33.76458604,128.11,128.1,0.063]
[1742536027433,169.86458604,128.11,128.1,0.063]
[1742536028548,84.55468604,128.11,128.05,0.063]
[1742536028735,33.4802629,128.06,128.05,0.063]
[1742536037671,33.76458604,128.06,128.05,0.063]
[1742536037846,41.57338604,128.06,128.05,0.063]
[1742536039071,80.9,128.03,128.0,0.063]
[1742536039234,0.78432314,127.95,127.92,18.85539958]
[1742536039436,0.78432314,127.95,127.89,72.49914482]
[1742536039437,20.0,127.91,127.9,23.66743796]
[1742536039741,88.65072769,127.91,127.9,23.66743796]
[1742536040259,18.933972,127.9,127.89,72.49914482]
[1742536040477,0.56864628,127.88,127.87,170.30867645]
[1742536040657,65.66529102,127.88,127.87,157.96742535]
[1742536040852,66.16529102,127.88,127.87,157.96742535]
[1742536041167,73.98509102,127.88,127.87,157.96742535]
[1742536041364,97.76791228,127.88,127.87,29.52943512]
[1742536041539,19.21829514,127.87,127.86,122.26191454]
[1742536041735,19.71829514,127.86,127.84,214.73618896]
[1742536041944,0.28432314,127.84,127.83,2.1569348]
[1742536042250,18.64964886,127.8,127.77,0.1]
[1742536042437,14.5462909,127.79,127.77,0.1]
[1742536042642,14.5462909,127.79,127.76,14.2156]
[1742536042861,54.22694485,127.79,127.75,6.98]
[1742536043067,33.19593976,127.8,127.75,21.5262909]
[1742536043280,22.83424328,127.79,127.75,6.98]
[1742536043567,22.83424328,127.79,127.74,30.66254328]
[1742536043743,127.04802204,127.78,127.74,30.66254328]
[1742536044141,127.04802204,127.78,127.74,22.83424328]
[1742536044359,41.48389214,127.77,127.72,30.66324328]
[1742536044561,22.83424328,127.76,127.71,30.66434328]
[1742536044751,41.48389214,127.75,127.7,37.64484328]
[1742536047770,18.64964886,127.75,127.71,22.83424328]
[1742536048069,2.17262203,127.74,127.71,22.83424328]
[1742536048566,2.17262203,127.74,127.71,30.66414328]
[1742536048962,2.17262203,127.74,127.71,7.8299]
[1742536049865,2.17262203,127.74,127.71,30.66414328]
[1742536050563,2.17262203,127.74,127.72,22.83424328]
[1742536053170,2.17262203,127.74,127.72,7.8296]
[1742536053378,2.17262203,127.74,127.72,7.8926]
[1742536053669,2.17262203,127.74,127.73,29.79424328]
[1742536055352,2.17262203,127.74,127.73,37.62324328]
[1742536057967,41.48389214,127.8,127.73,57.19574328]
[1742536058175,41.48389214,127.8,127.74,22.83424328]
[1742536059273,41.48389214,127.8,127.75,7.8277]
[1742536059867,41.48389214,127.8,127.75,30.66194328]
[1742536060063,22.83424328,127.79,127.75,7.8277]
[1742536060274,41.48389214,127.8,127.75,7.8277]
[1742536060971,18.64964886,127.8,127.76,22.83424328]
[1742536061152,18.64964886,127.8,127.77,14.7465]
[1742536063077,42.83424328,127.81,127.77,14.7465]
[1742536063287,42.83424328,127.81,127.77,34.3129]
[1742536063482,20.0,127.81,127.77,34.3129]
[1742536064492,18.64964886,127.82,127.77,57.14714328]
[1742536064787,18.64964886,127.82,127.78,22.83424328]
[1742536065185,0.03,127.81,127.78,22.83424328]
[1742536065388,0.03,127.81,127.79,7.8253]
[1742536066673,22.86424328,127.81,127.78,7.8256]
[1742536067068,0.03,127.81,127.78,30.65984328]
[1742536067284,0.03,127.81,127.78,50.22464328]
[1742536068795,0.03,127.81,127.78,27.3904]
[1742536073987,0.03,127.81,127.78,7.8256]
[1742536078877,0.03,127.81,127.79,14.60974175]
[1742536079082,0.03,127.81,127.8,14.60974175]
[1742536079579,0.03,127.81,127.8,22.43444175]
[1742536079780,0.03,127.81,127.8,7.8247]
[1742536082896,5.7479756,127.81,127.8,7.8247]
[1742536083778,14.95361995,127.81,127.8,7.8247]
[1742536083979,1.995e-05,127.81,127.8,131.91586489]
[1742536084302,20.0,127.88,127.83,20.0]
[1742536084477,20.0,127.88,127.85,14.60974175]
[1742536084883,20.0,127.88,127.86,7.821]
[1742536085084,24.45476096,127.9,127.86,7.821]
[1742536085298,41.44800982,127.91,127.86,30.61936096]
[1742536086796,4.60581333,127.9,127.86,30.61936096]
[1742536088303,41.44800982,127.91,127.86,30.61936096]
[1742536088304,4.60581333,127.89,127.86,30.61936096]
[1742536089301,4.60581333,127.89,127.87,22.79836096]
[1742536089480,4.60581333,127.89,127.88,6.88]
[1742536089682,22.79836096,127.92,127.88,6.88]
[1742536090201,0.03,127.91,127.88,6.88]
[1742536091396,0.03,127.91,127.89,7.8192]
[1742536093001,20.03,127.91,127.89,7.8192]
[1742536095578,20.03,127.91,127.88,14.6995]
[1742536099202,0.03,127.91,127.88,14.6995]
[1742536099411,0.03,127.91,127.88,37.49786096]
[1742536099607,0.03,127.91,127.88,14.6995]
[1742536100199,0.03,127.91,127.88,37.49786096]
[1742536100405,0.03,127.91,127.89,22.79836096]
[1742536102495,0.03,127.91,127.88,37.49786096]
[1742536105112,0.03,127.91,127.88,14.6995]
[1742536107512,38.67964886,127.91,127.88,6.88]
[1742536107810,53.26212316,127.91,127.86,14.5824743]
[1742536108920,38.67964886,127.91,127.87,22.4025743]
[1742536109414,46.49764886,127.91,127.87,22.4025743]
[1742536109716,61.08012316,127.91,127.87,7.8201]
[1742536109896,61.08012316,127.91,127.86,22.4032743]
[1742536112207,46.49764886,127.91,127.87,22.4024743]
[1742536112409,38.67964886,127.91,127.87,22.4024743]
[1742536115302,0.03,127.91,127.89,14.5824743]
[1742536115614,0.03,127.91,127.89,21.4024743]
[1742536116435,0.03,127.91,127.9,14.5824743]
[1742536116802,0.03,127.91,127.9,34.86679744]
[1742536117025,0.03,127.91,127.9,42.68539744]
[1742536118118,0.03,127.91,127.9,22.4010743]
[1742536119122,0.03,127.91,127.9,14.5824743]
[1742536120821,0.03,127.91,127.9,22.4010743]
[1742536122836,14.6124743,127.91,127.86,22.4032743]
[1742536123005,14.6124743,127.91,127.86,29.2032743]
[1742536123207,0.03,127.91,127.87,14.5824743]
[1742536123925,7.8479,127.91,127.87,14.5824743]
[1742536124133,7.8479,127.91,127.87,22.4027743]
[1742536124342,18.67964886,127.91,127.87,22.4027743]
[1742536125112,18.67964886,127.91,127.87,30.61048795]
[1742536125635,0.03,127.91,127.88,22.79018795]
[1742536125839,0.03,127.91,127.87,30.61048795]
[1742536127051,0.03,127.91,127.89,22.79018795]
[1742536127230,0.03,127.91,127.88,22.79018795]
[1742536127827,0.03,127.91,127.89,30.60938795]
[1742536128032,0.03,127.91,127.89,7.8192]
[1742536128413,0.03,127.91,127.88,30.60968795]
[1742536131336,0.03,127.91,127.89,22.79018795]
[1742536131635,4.62286396,127.9,127.89,22.79018795]
[1742536131823,4.62286396,127.9,127.89,29.59018795]
[1742536133027,0.03,127.91,127.89,37.40938795]
[1742536133230,0.03,127.91,127.9,22.79018795]
[1742536135448,0.03,127.91,127.9,30.60878795]
[1742536136239,0.03,127.91,127.88,7.8195]
[1742536136411,0.03,127.91,127.88,14.6195]
[1742536137316,0.03,127.91,127.88,37.40968795]
[1742536139037,0.03,127.91,127.89,22.79018795]
[1742536140839,0.03,127.91,127.9,7.8186]
[1742536141833,0.03,127.91,127.9,30.60878795]
[1742536143834,0.03,127.91,127.9,50.89311109]
[1742536144221,0.03,127.91,127.9,50.60878795]
[1742536144839,0.03,127.91,127.9,50.75094952]
[1742536145138,0.03,127.91,127.9,42.53426396]
[1742536146115,0.03,127.91,127.9,42.8185871]
[1742536147419,0.03,127.91,127.9,124.0185871]
[1742536148339,0.03,127.91,127.9,123.73426396]
[1742536149565,0.03,127.91,127.9,103.59210239]
[1742536149749,0.03,127.91,127.9,81.2]
[1742536150043,0.03,127.91,127.89,7.819]
[1742536150044,14.60350239,127.91,127.86,7.821]
[1742536150228,14.57350239,127.9,127.86,14.601]
[1742536151250,22.79663397,127.9,127.86,30.61763397]
[1742536151647,41.47628283,127.91,127.86,30.61763397]
[1742536152251,18.67964886,127.91,127.87,22.79663397]
[1742536152827,41.47628283,127.91,127.86,30.61763397]
[1742536153531,18.67964886,127.91,127.87,22.79663397]
[1742536153948,18.67964886,127.91,127.88,7.8198]
[1742536155031,18.67964886,127.91,127.88,30.61643397]
[1742536155454,18.67964886,127.91,127.88,7.8198]
[1742536156333,22.79663397,127.9,127.85,29.57663397]
[1742536157934,22.79663397,127.89,127.84,22.79663397]
[1742536158130,22.79663397,127.88,127.83,37.39923397]
[1742536158841,24.31713397,127.89,127.83,37.39923397]
[1742536159151,24.31713397,127.89,127.84,22.79663397]
[1742536160152,7.8198,127.88,127.84,22.79663397]
[1742536160332,7.8198,127.88,127.84,30.61873397]
[1742536160532,32.13653397,127.89,127.84,30.61873397]
[1742536160946,25.24234886,127.88,127.83,30.61913397]
[1742536161132,48.03898283,127.88,127.83,7.8225]
[1742536161334,22.79663397,127.87,127.82,37.39983397]
[1742536161747,22.79663397,127.86,127.81,37.46343397]
[1742536161945,22.79663397,127.86,127.81,30.68343397]
[1742536162347,49.26698283,127.87,127.81,30.68343397]
[1742536162551,49.26698283,127.87,127.82,22.79663397]
[1742536162757,22.79663397,127.86,127.81,30.68343397]
[1742536164438,41.44628283,127.87,127.82,22.79663397]
[1742536164839,18.64964886,127.87,127.83,22.79663397]
[1742536165053,6.5927,127.88,127.83,22.79663397]
[1742536165256,6.5927,127.88,127.84,22.79663397]
[1742536165440,6.5927,127.88,127.85,30.61823397]
[1742536165635,1.5205,127.89,127.85,30.61823397]
[1742536165837,1.5205,127.89,127.86,22.79663397]
[1742536166361,0.03,127.9,127.86,22.79663397]
[1742536166746,0.03,127.9,127.87,22.79663397]
[1742536167144,0.03,127.9,127.86,22.79663397]
[1742536167457,0.03,127.9,127.87,7.8204]
[1742536168065,0.03,127.9,127.87,50.16813397]
[1742536168646,0.03,127.9,127.88,29.57663397]
[1742536169567,0.03,127.9,127.89,30.61583397]
[1742536173252,0.03,127.9,127.89,22.3963063]
[1742536193672,0.03,127.9,127.88,89.0197]
[1742536193874,0.03,127.9,127.88,95.7597]
[1742536194284,0.03,127.9,127.88,14.5597]
[1742536194483,0.03,127.9,127.88,7.8197]
[1742536194676,0.03,127.9,127.87,14.5601]
[1742536197282,0.03,127.9,127.87,6.74]
[1742536197485,14.6071063,127.9,127.87,6.74]
[1742536197673,21.1569063,127.9,127.87,6.74]
[1742536197983,21.1569063,127.9,127.84,7.822]
[1742536197984,14.5771063,127.88,127.84,7.822]
[1742536198283,14.5771063,127.88,127.84,14.562]
[1742536198499,33.22675516,127.89,127.84,29.1391063]
[1742536198867,14.5771063,127.88,127.84,29.1391063]
[1742536200172,14.5771063,127.88,127.84,22.3991063]
[1742536200372,22.3969063,127.88,127.84,14.542]
[1742536201493,14.5771063,127.87,127.84,14.542]
[1742536202388,23.9518063,127.87,127.83,7.8226]
[1742536202691,16.1314063,127.87,127.83,29.1197063]
[1742536202892,1.5543,127.87,127.83,29.1197063]
[1742536203481,16.1314063,127.87,127.83,14.5426]
[1742536203879,23.9519063,127.87,127.83,14.5426]
[1742536204375,23.9519063,127.87,127.83,6.72]
[1742536204376,18.64964886,127.86,127.83,6.72]
[1742536204583,14.5771063,127.85,127.82,6.72]
[1742536204767,20.7994063,127.85,127.82,6.72]
[1742536204972,6.2223,127.85,127.82,21.2971063]
[1742536205792,6.2223,127.85,127.83,7.8228]
[1742536206190,18.64964886,127.86,127.83,7.8228]
[1742536206886,6.2223,127.88,127.85,14.5771063]
[1742536207192,6.2223,127.88,127.86,6.72]
[1742536207884,6.2223,127.88,127.86,14.5404]
[1742536210205,18.67964886,127.9,127.86,29.1175063]
[1742536212297,0.03,127.9,127.86,48.6701063]
[1742536212484,0.03,127.9,127.87,14.5771063]
[1742536212802,0.03,127.9,127.88,14.5771063]
[1742536213200,0.03,127.9,127.89,14.5771063]
[1742536214911,0.03,127.9,127.89,22.3963063]
[1742536218609,0.03,127.9,127.89,42.68062944]
[1742536218805,0.03,127.9,127.89,100.98905464]
[1742536218987,0.03,127.91,127.9,0.14216157]
[1742536219187,0.03,127.91,127.9,21.43926787]
[1742536219509,0.03,127.91,127.9,103.06575258]
[1742536221407,0.03,127.91,127.9,110.88435258]
[1742536228697,0.03,127.91,127.9,104.16435258]
[1742536229000,0.03,127.91,127.9,110.86435258]
[1742536229810,0.03,127.91,127.9,103.5957063]
[1742536230020,0.03,127.91,127.9,14.5186]
[1742536230195,0.03,127.91,127.9,6.7]
[1742536232003,0.03,127.91,127.9,29.0957063]
[1742536233391,0.03,127.91,127.9,29.23786787]
[1742536235396,0.03,127.91,127.9,110.43786787]
[1742536235813,0.03,127.91,127.9,110.86435258]
[1742536236006,0.0001,127.91,127.9,110.86435258]
[1742536242811,0.0001,127.91,127.9,110.43786787]
[1742536243012,0.0001,127.91,127.9,95.86076157]
[1742536243213,0.0001,127.91,127.9,110.43786787]
[1742536244418,0.0001,127.91,127.9,110.2957063]
[1742536245530,0.0001,127.91,127.9,29.0957063]
[1742536245709,0.0001,127.91,127.89,22.3961063]
[1742536245913,0.0001,127.91,127.9,6.7]
[1742536246224,0.0001,127.91,127.9,21.2771063]
[1742536246425,0.0001,127.91,127.9,29.0957063]
[1742536249527,0.0001,127.91,127.9,14.5186]
[1742536251007,0.0001,127.91,127.9,29.0957063]
[1742536253631,0.0001,127.91,127.9,29.1587063]
[1742536255642,0.0001,127.91,127.9,14.5816]
[1742536260130,0.0001,127.91,127.9,29.1587063]
[1742536261721,0.0001,127.91,127.9,14.5816]
[1742536263339,0.0001,127.91,127.9,6.763]
[1742536263538,0.0001,127.91,127.9,0.063]
[1742536263725,14.5772063,127.91,127.9,0.063]
[1742536263920,21.1371063,127.91,127.9,0.063]
[1742536264528,6.56,127.91,127.9,0.063]
[1742536264715,0.0001,127.91,127.9,0.063]
[1742536267541,33.22685516,127.91,127.9,0.063]
[1742536268637,18.64974886,127.91,127.9,0.063]
[1742536268844,20.0001,127.91,127.9,0.063]
[1742536269034,0.03,127.94,127.91,0.14216157]
[1742536269226,0.03,127.94,127.93,34.71926787]
[1742536269649,0.03,127.94,127.93,42.53596787]
[1742536270250,0.03,127.94,127.93,124.16245258]
[1742536270432,0.03,128.0,127.98,14.5771063]
[1742536270750,20.03,128.0,127.99,6.82]
[1742536270927,20.03,128.0,127.98,6.82]
[1742536272044,0.03,128.0,127.98,6.82]
[1742536272547,0.03,128.0,127.97,7.8143]
[1742536272728,0.03,128.0,127.98,6.82]
[1742536273952,42.78418936,128.0,127.98,6.82]
[1742536275028,20.03,128.0,127.98,6.82]
[1742536275241,20.03,128.0,127.98,14.6336]
[1742536277558,42.78418936,128.0,127.98,6.82]
[1742536279856,42.78418936,128.0,127.98,14.6336]
[1742536280050,20.03,128.0,127.98,14.6336]
[1742536281161,20.03,128.0,127.98,6.82]
[1742536281959,20.03,128.0,127.98,14.6337]
[1742536283363,20.03,128.0,127.98,6.82]
[1742536283555,22.75418936,127.99,127.96,6.8]
[1742536284880,22.75418936,127.99,127.95,7.8152]
[1742536286456,30.56728936,127.99,127.95,7.8152]
[1742536286770,22.75418936,127.98,127.94,7.8158]
[1742536287073,22.75418936,127.96,127.93,6.78]
[1742536287280,22.75418936,127.96,127.92,7.8173]
[1742536287583,22.75418936,127.96,127.92,14.5973]
[1742536288469,30.56908936,127.96,127.92,7.8173]
[1742536288780,30.56908936,127.96,127.92,14.5973]
[1742536288960,30.56908936,127.96,127.94,0.063]
[1742536289670,22.75418936,127.96,127.94,0.063]
[1742536289976,30.56878936,127.97,127.94,0.063]
[1742536290356,18.64964886,127.97,127.94,0.063]
[1742536290556,30.67528936,127.98,127.94,0.063]
[1742536290856,30.67528936,127.98,127.94,22.81718936]
[1742536291977,30.67528936,127.98,127.94,30.63288936]
[1742536292205,18.64964886,127.99,127.95,22.75418936]
[1742536293476,18.64964886,127.99,127.95,30.56918936]